[Event "Early-Titled-Tuesday-Blitz-September-12-2023"]
[Site "Chess.com"]
[Date "2023.09.12"]
[Round "7"]
[White "nihalsarin"]
[Black "Sanan_Sjugirov"]
[Result "0-1"]
[WhiteElo "3101"]
[BlackElo "2930"]
[TimeControl "180+1"]
[EndTime "9:18:41 PDT"]
[Termination "Sanan_Sjugirov won by resignation"]

1. a3 {[%clk 0:03:00.9]} 1... e5 {[%clk 0:02:58.3]} 2. e4 {[%clk 0:03:00.7]}
2... Nf6 {[%clk 0:02:57.4]} 3. Nc3 {[%clk 0:03:01.4]} 3... Bc5 {[%clk 0:02:57]}
4. Bc4 {[%clk 0:03:01.9]} 4... d6 {[%clk 0:02:56.6]} 5. d3 {[%clk 0:03:02.6]}
5... a5 {[%clk 0:02:54.3]} 6. Nf3 {[%clk 0:03:03.1]} 6... O-O {[%clk 0:02:53.7]}
7. h3 {[%clk 0:03:03.7]} 7... c6 {[%clk 0:02:48.6]} 8. O-O {[%clk 0:03:04.2]}
8... h6 {[%clk 0:02:43.5]} 9. Be3 {[%clk 0:03:04.3]} 9... Bxe3 {[%clk
0:02:38.6]} 10. fxe3 {[%clk 0:03:05.2]} 10... Be6 {[%clk 0:02:39]} 11. Bxe6
{[%clk 0:03:04.9]} 11... fxe6 {[%clk 0:02:39.9]} 12. Qe1 {[%clk 0:03:05.4]}
12... Nbd7 {[%clk 0:02:36.8]} 13. Qg3 {[%clk 0:03:06.1]} 13... Qb6 {[%clk
0:02:34.7]} 14. Rab1 {[%clk 0:03:06]} 14... Qxe3+ {[%clk 0:02:34.1]} 15. Kh1
{[%clk 0:03:06.2]} 15... Rf7 {[%clk 0:02:14.7]} 16. Rbe1 {[%clk 0:03:06]} 16...
Qb6 {[%clk 0:02:14]} 17. Nd1 {[%clk 0:03:06.8]} 17... Raf8 {[%clk 0:02:12.3]}
18. Ne3 {[%clk 0:03:07.5]} 18... Qxb2 {[%clk 0:02:04.5]} 19. Nc4 {[%clk
0:03:07.7]} 19... Qxc2 {[%clk 0:01:59.3]} 20. Nxd6 {[%clk 0:03:08.3]} 20... Re7
{[%clk 0:01:51.4]} 21. Nh4 {[%clk 0:03:08.5]} 21... Nh5 {[%clk 0:01:29]} 22.
Rxf8+ {[%clk 0:03:08.3]} 22... Nxf8 {[%clk 0:01:28.4]} 23. Qxe5 {[%clk
0:03:08.7]} 23... Qf2 {[%clk 0:01:23.4]} 24. Nf3 {[%clk 0:03:09.3]} 24... Ng3+
{[%clk 0:01:14.9]} 25. Kh2 {[%clk 0:03:09.6]} 25... Nf1+ {[%clk 0:01:15]} 26.
Kh1 {[%clk 0:03:10.3]} 26... Ng6 {[%clk 0:01:07.3]} 27. Qxa5 {[%clk 0:03:03.1]}
27... Nf4 {[%clk 0:00:57.5]} 28. Nh4 {[%clk 0:03:03.3]} 28... Rd7 {[%clk
0:00:39.2]} 29. e5 {[%clk 0:02:59.8]} 29... Nxh3 {[%clk 0:00:31.2]} 30. Rxf1
{[%clk 0:02:45.3]} 30... Qxf1+ {[%clk 0:00:32.1]} 31. Kh2 {[%clk 0:02:46.2]}
31... Ng5 {[%clk 0:00:28.4]} 32. Qa8+ {[%clk 0:02:39.6]} 32... Kh7 {[%clk
0:00:28.3]} 33. Qe8 {[%clk 0:02:40.5]} 33... Qf4+ {[%clk 0:00:26]} 34. g3 {[%clk
0:02:41.2]} 34... Qf2+ {[%clk 0:00:18.2]} 35. Kh1 {[%clk 0:02:41.3]} 35... Rd8
{[%clk 0:00:09.5]} 36. Qxd8 {[%clk 0:02:28.7]} 36... Nh3 {[%clk 0:00:08.8]} 37.
Nf3 {[%clk 0:02:16.4]} 37... Qxf3+ {[%clk 0:00:08.9]} 38. Kh2 {[%clk 0:02:17.1]}
38... Nf2 {[%clk 0:00:08.7]} 39. Kg1 {[%clk 0:02:13.9]} 39... Qxg3+ {[%clk
0:00:08.3]} 40. Kf1 {[%clk 0:02:14]} 40... Qf3 {[%clk 0:00:06.6]} 41. Ke1 {[%clk
0:02:07.4]} 41... Qe3+ {[%clk 0:00:05.1]} 42. Kf1 {[%clk 0:02:08]} 42... Nxd3
{[%clk 0:00:04.6]} 43. Qf8 {[%clk 0:02:05.7]} 43... Qxe5 {[%clk 0:00:02.9]} 44.
Nxb7 {[%clk 0:02:01.2]} 44... Qf4+ {[%clk 0:00:03]} 45. Qxf4 {[%clk 0:02:00.8]}
45... Nxf4 {[%clk 0:00:03.9]} 46. a4 {[%clk 0:02:01.7]} 46... Nd5 {[%clk
0:00:04.2]} 47. a5 {[%clk 0:02:00.9]} 47... Nc7 {[%clk 0:00:04.4]} 48. Nc5
{[%clk 0:01:57.5]} 48... Kg6 {[%clk 0:00:04.8]} 49. a6 {[%clk 0:01:57.8]} 49...
Kf6 {[%clk 0:00:04.5]} 50. a7 {[%clk 0:01:58]} 50... Ke7 {[%clk 0:00:04.5]} 51.
Ke2 {[%clk 0:01:57.7]} 51... Kd6 {[%clk 0:00:04]} 52. Na6 {[%clk 0:01:42.8]}
52... Na8 {[%clk 0:00:03.9]} 53. Ke3 {[%clk 0:01:43.6]} 53... c5 {[%clk
0:00:03.7]} 54. Ke4 {[%clk 0:01:44]} 54... h5 {[%clk 0:00:03.5]} 55. Kf4 {[%clk
0:01:36.1]} 55... Kc6 {[%clk 0:00:03.6]} 56. Nb8+ {[%clk 0:01:36.1]} 56... Kb7
{[%clk 0:00:03.2]} 57. Nd7 {[%clk 0:01:36.7]} 57... c4 {[%clk 0:00:03.5]} 58.
Nc5+ {[%clk 0:01:33.8]} 58... Kxa7 {[%clk 0:00:03.9]} 59. Nxe6 {[%clk
0:01:34.7]} 59... g6 {[%clk 0:00:03.1]} 60. Ke4 {[%clk 0:01:28.4]} 60... Nb6
{[%clk 0:00:03.4]} 61. Nf4 {[%clk 0:01:28.7]} 61... h4 {[%clk 0:00:03.5]} 62.
Nxg6 {[%clk 0:01:25.7]} 62... h3 {[%clk 0:00:04.1]} 63. Kf3 {[%clk 0:01:26.5]}
63... c3 {[%clk 0:00:04.3]} 64. Ne5 {[%clk 0:01:26.2]} 64... c2 {[%clk
0:00:03.7]} 65. Nd3 {[%clk 0:01:26.8]} 65... Nd5 {[%clk 0:00:03.3]} 66. Kg3
{[%clk 0:01:23.8]} 66... Nf4 {[%clk 0:00:03.7]} 67. Nc1 {[%clk 0:01:19.1]} 67...
Kb6 {[%clk 0:00:03.7]} 68. Nb3 {[%clk 0:01:19.9]} 68... Kc7 {[%clk 0:00:03.1]}
69. Kh2 {[%clk 0:01:14.7]} 69... Kd6 {[%clk 0:00:03.4]} 70. Kg3 {[%clk
0:01:14.6]} 70... Kd5 {[%clk 0:00:03.3]} 71. Kh2 {[%clk 0:01:14.2]} 71... Kc4
{[%clk 0:00:03.4]} 72. Nc1 {[%clk 0:01:11.1]} 72... Kc3 {[%clk 0:00:02.9]} 73.
Kg3 {[%clk 0:01:10.9]} 73... Kb2 {[%clk 0:00:02.9]} 0-1

[Event "Early-Titled-Tuesday-Blitz-September-12-2023"]
[Site "Chess.com"]
[Date "2023.09.12"]
[Round "7"]
[White "Zavgorodniy_Sergiy"]
[Black "JiiHart"]
[Result "1-0"]
[WhiteElo "2532"]
[BlackElo "2156"]
[TimeControl "180+1"]
[EndTime "9:18:43 PDT"]
[Termination "Zavgorodniy_Sergiy won by resignation"]

1. d4 {[%clk 0:03:00.9]} 1... d5 {[%clk 0:02:59.4]} 2. c4 {[%clk 0:03:01.1]}
2... c5 {[%clk 0:02:59.4]} 3. dxc5 {[%clk 0:03:00.7]} 3... e6 {[%clk 0:02:54.8]}
4. cxd5 {[%clk 0:02:59.2]} 4... Bxc5 {[%clk 0:02:53.3]} 5. Nf3 {[%clk
0:02:58.4]} 5... Nf6 {[%clk 0:02:36.1]} 6. e3 {[%clk 0:02:57.2]} 6... Qxd5
{[%clk 0:02:31.4]} 7. Qxd5 {[%clk 0:02:56.4]} 7... Nxd5 {[%clk 0:02:31.6]} 8. a3
{[%clk 0:02:57]} 8... Nc6 {[%clk 0:02:30.3]} 9. b4 {[%clk 0:02:56.8]} 9... Be7
{[%clk 0:02:25.3]} 10. Bb2 {[%clk 0:02:55.8]} 10... Bf6 {[%clk 0:02:25.3]} 11.
Bxf6 {[%clk 0:02:55.8]} 11... gxf6 {[%clk 0:02:17.8]} 12. Bc4 {[%clk 0:02:53.1]}
12... Nb6 {[%clk 0:02:01.8]} 13. Bb3 {[%clk 0:02:52.7]} 13... e5 {[%clk
0:01:50.1]} 14. Nbd2 {[%clk 0:02:48.7]} 14... Be6 {[%clk 0:01:49.3]} 15. Rc1
{[%clk 0:02:45.5]} 15... Rc8 {[%clk 0:01:36.9]} 16. Ke2 {[%clk 0:02:31.1]} 16...
Ke7 {[%clk 0:01:32.7]} 17. Bxe6 {[%clk 0:02:27.6]} 17... fxe6 {[%clk 0:01:32]}
18. Ne4 {[%clk 0:02:21.1]} 18... Na4 {[%clk 0:01:19.3]} 19. Nc5 {[%clk
0:02:15.7]} 19... Nxc5 {[%clk 0:01:18.6]} 20. Rxc5 {[%clk 0:02:16.6]} 20... b6
{[%clk 0:01:03]} 21. Rcc1 {[%clk 0:02:15.5]} 21... Nb8 {[%clk 0:00:57.5]} 22.
Nd2 {[%clk 0:02:10.3]} 22... Rxc1 {[%clk 0:00:41.7]} 23. Rxc1 {[%clk 0:02:09.5]}
23... Kd7 {[%clk 0:00:41.7]} 24. Ne4 {[%clk 0:02:06.8]} 24... f5 {[%clk
0:00:34.6]} 25. Ng5 {[%clk 0:01:51.7]} 25... Rg8 {[%clk 0:00:10.8]} 26. Nf3
{[%clk 0:01:35.3]} 26... e4 {[%clk 0:00:10.3]} 27. Ne5+ {[%clk 0:01:23.3]} 27...
Kd6 {[%clk 0:00:10.3]} 28. Nf7+ {[%clk 0:01:21.8]} 28... Ke7 {[%clk 0:00:10.3]}
29. Rc7+ {[%clk 0:01:21.2]} 29... Kf6 {[%clk 0:00:10.7]} 30. Nd6 {[%clk
0:01:05.5]} 30... Rxg2 {[%clk 0:00:08]} 31. Rxh7 {[%clk 0:00:52.7]} 31... a5
{[%clk 0:00:06.8]} 32. Nc4 {[%clk 0:00:44.9]} 32... axb4 {[%clk 0:00:06]} 33.
axb4 {[%clk 0:00:45.8]} 33... Nc6 {[%clk 0:00:06.3]} 34. b5 {[%clk 0:00:43.4]}
34... Ne5 {[%clk 0:00:06.2]} 35. Nxe5 {[%clk 0:00:36.6]} 35... Kxe5 {[%clk
0:00:06]} 36. Rb7 {[%clk 0:00:35.1]} 36... Rxh2 {[%clk 0:00:05.8]} 37. Rxb6
{[%clk 0:00:35.6]} 37... Rh8 {[%clk 0:00:05]} 38. Rb7 {[%clk 0:00:30.8]} 38...
Rc8 {[%clk 0:00:03.7]} 39. b6 {[%clk 0:00:29.7]} 39... Kd6 {[%clk 0:00:03.5]}
40. Kd2 {[%clk 0:00:20.5]} 40... Rc5 {[%clk 0:00:01.9]} 41. Rf7 {[%clk
0:00:14.8]} 41... Rd5+ {[%clk 0:00:02.2]} 42. Kc3 {[%clk 0:00:14.3]} 42... Rb5
{[%clk 0:00:02.6]} 43. b7 {[%clk 0:00:14.3]} 43... Kc6 {[%clk 0:00:02.8]} 44.
Re7 {[%clk 0:00:14]} 44... Kd6 {[%clk 0:00:02.6]} 45. Rf7 {[%clk 0:00:13.5]}
45... Kc6 {[%clk 0:00:02.8]} 46. Kd4 {[%clk 0:00:11.6]} 46... Rxb7 {[%clk
0:00:02.5]} 47. Rxb7 {[%clk 0:00:11.3]} 47... Kxb7 {[%clk 0:00:02.3]} 48. Ke5
{[%clk 0:00:12.2]} 48... Kc6 {[%clk 0:00:02.1]} 49. Kxe6 {[%clk 0:00:12.5]}
49... f4 {[%clk 0:00:01.7]} 50. exf4 {[%clk 0:00:12.6]} 50... Kc5 {[%clk
0:00:02.1]} 51. Ke5 {[%clk 0:00:12.7]} 51... e3 {[%clk 0:00:02.2]} 52. fxe3
{[%clk 0:00:12.5]} 1-0

[Event "Early-Titled-Tuesday-Blitz-September-12-2023"]
[Site "Chess.com"]
[Date "2023.09.12"]
[Round "7"]
[White "Chessbard1972"]
[Black "pirulillo"]
[Result "0-1"]
[WhiteElo "2458"]
[BlackElo "2310"]
[TimeControl "180+1"]
[EndTime "9:18:51 PDT"]
[Termination "pirulillo won on time"]

1. d4 {[%clk 0:03:00.9]} 1... Nf6 {[%clk 0:02:58.3]} 2. c4 {[%clk 0:02:59.5]}
2... g6 {[%clk 0:02:56.8]} 3. Nf3 {[%clk 0:02:58.4]} 3... Bg7 {[%clk 0:02:56.5]}
4. g3 {[%clk 0:02:58.6]} 4... O-O {[%clk 0:02:56.6]} 5. Bg2 {[%clk 0:02:58.1]}
5... d6 {[%clk 0:02:57.2]} 6. Nc3 {[%clk 0:02:53.9]} 6... c6 {[%clk 0:02:57.3]}
7. O-O {[%clk 0:02:53.1]} 7... Qa5 {[%clk 0:02:57.8]} 8. h3 {[%clk 0:02:53]}
8... e5 {[%clk 0:02:57]} 9. e4 {[%clk 0:02:50.5]} 9... exd4 {[%clk 0:02:55.9]}
10. Nxd4 {[%clk 0:02:49.7]} 10... Nbd7 {[%clk 0:02:56.4]} 11. Be3 {[%clk
0:02:46.8]} 11... Ne5 {[%clk 0:02:55.9]} 12. Qe2 {[%clk 0:02:40.8]} 12... Qb4
{[%clk 0:02:55.3]} 13. f4 {[%clk 0:02:27.2]} 13... Nxc4 {[%clk 0:02:53.9]} 14.
a3 {[%clk 0:02:25.3]} 14... Qc5 {[%clk 0:02:34.5]} 15. b4 {[%clk 0:02:23]} 15...
Nxe3 {[%clk 0:02:25.7]} 16. bxc5 {[%clk 0:02:19.7]} 16... Nxf1 {[%clk
0:02:25.6]} 17. Rxf1 {[%clk 0:02:13.6]} 17... dxc5 {[%clk 0:02:24.9]} 18. Nb3
{[%clk 0:02:05.4]} 18... Nd7 {[%clk 0:02:15.2]} 19. Na4 {[%clk 0:01:58.5]} 19...
b6 {[%clk 0:02:13.5]} 20. e5 {[%clk 0:01:56.7]} 20... Bb7 {[%clk 0:02:13]} 21.
Rd1 {[%clk 0:01:55.7]} 21... Rfd8 {[%clk 0:02:10.6]} 22. Nc3 {[%clk 0:01:49.4]}
22... Nf8 {[%clk 0:02:09.9]} 23. Ne4 {[%clk 0:01:48.6]} 23... Ne6 {[%clk
0:02:08.3]} 24. Nd6 {[%clk 0:01:47.9]} 24... Rab8 {[%clk 0:02:07.5]} 25. Kh2
{[%clk 0:01:44.2]} 25... Ba8 {[%clk 0:02:06.8]} 26. Qc4 {[%clk 0:01:41.7]} 26...
Bf8 {[%clk 0:02:03.5]} 27. g4 {[%clk 0:01:34.3]} 27... Bg7 {[%clk 0:02:02.5]}
28. Re1 {[%clk 0:01:30.8]} 28... b5 {[%clk 0:01:56.4]} 29. Qc3 {[%clk
0:01:25.1]} 29... Nxf4 {[%clk 0:01:55.1]} 30. Qg3 {[%clk 0:01:14.1]} 30... Ne6
{[%clk 0:01:49.1]} 31. Nd2 {[%clk 0:01:09.2]} 31... Bh6 {[%clk 0:01:44.3]} 32.
Rf1 {[%clk 0:00:57.6]} 32... Bxd2 {[%clk 0:01:42.8]} 33. Ne4 {[%clk 0:00:56.1]}
33... Bh6 {[%clk 0:01:36.7]} 34. g5 {[%clk 0:00:53.6]} 34... Bg7 {[%clk
0:01:34.7]} 35. Nf6+ {[%clk 0:00:53.9]} 35... Bxf6 {[%clk 0:01:32.5]} 36. gxf6
{[%clk 0:00:49.9]} 36... c4 {[%clk 0:01:31.6]} 37. h4 {[%clk 0:00:47.7]} 37...
Rd3 {[%clk 0:01:27.9]} 38. Rf3 {[%clk 0:00:44.6]} 38... Rbd8 {[%clk 0:01:26.2]}
39. Bh3 {[%clk 0:00:37.9]} 39... c5 {[%clk 0:01:15]} 40. Rxd3 {[%clk 0:00:33.9]}
40... Rxd3 {[%clk 0:01:13.8]} 41. Qe1 {[%clk 0:00:27.8]} 41... c3 {[%clk
0:01:11.1]} 42. Bxe6 {[%clk 0:00:26.4]} 42... fxe6 {[%clk 0:01:10.8]} 43. h5
{[%clk 0:00:18.7]} 43... c2 {[%clk 0:00:54.1]} 44. Qc1 {[%clk 0:00:17]} 44...
Be4 {[%clk 0:00:25.1]} 45. Qh6 {[%clk 0:00:13.9]} 45... Rd7 {[%clk 0:00:24.9]}
46. hxg6 {[%clk 0:00:13.8]} 46... Bxg6 {[%clk 0:00:23.9]} 47. Qe3 {[%clk
0:00:12.1]} 47... c4 {[%clk 0:00:21.9]} 48. Qc3 {[%clk 0:00:09.1]} 48... a5
{[%clk 0:00:20.5]} 49. Qb2 {[%clk 0:00:05.4]} 49... Rb7 {[%clk 0:00:19.9]} 50.
Qc1 {[%clk 0:00:04.5]} 50... b4 {[%clk 0:00:19.8]} 51. axb4 {[%clk 0:00:05]}
51... axb4 {[%clk 0:00:19.7]} 52. Qd2 {[%clk 0:00:04.4]} 52... b3 {[%clk
0:00:19.7]} 53. Qd8+ {[%clk 0:00:03.9]} 53... Kf7 {[%clk 0:00:19.8]} 54. Qh8
{[%clk 0:00:03.5]} 54... c1=Q {[%clk 0:00:17.6]} 55. Qg7+ {[%clk 0:00:03.5]}
55... Ke8 {[%clk 0:00:17.5]} 56. Qxb7 {[%clk 0:00:02.3]} 56... Qf4+ {[%clk
0:00:16.5]} 57. Kg1 {[%clk 0:00:01.2]} 57... Qe3+ {[%clk 0:00:15.7]} 0-1

[Event "Early-Titled-Tuesday-Blitz-September-12-2023"]
[Site "Chess.com"]
[Date "2023.09.12"]
[Round "7"]
[White "campochess"]
[Black "Good_Knight_Kiss"]
[Result "0-1"]
[WhiteElo "2121"]
[BlackElo "2402"]
[TimeControl "180+1"]
[EndTime "9:18:52 PDT"]
[Termination "Good_Knight_Kiss won on time"]

1. d4 {[%clk 0:02:51.6]} 1... Nf6 {[%clk 0:02:59.7]} 2. Bg5 {[%clk 0:02:51.4]}
2... Ne4 {[%clk 0:02:56.5]} 3. h4 {[%clk 0:02:50]} 3... Nxg5 {[%clk 0:02:56.3]}
4. hxg5 {[%clk 0:02:49.3]} 4... g6 {[%clk 0:02:54.8]} 5. Nf3 {[%clk 0:02:48.6]}
5... d6 {[%clk 0:02:55.1]} 6. e4 {[%clk 0:02:47.2]} 6... h5 {[%clk 0:02:54.8]}
7. gxh6 {[%clk 0:02:40.5]} 7... Rxh6 {[%clk 0:02:54.5]} 8. Rxh6 {[%clk
0:02:38.7]} 8... Bxh6 {[%clk 0:02:55.4]} 9. Nc3 {[%clk 0:02:38.4]} 9... Nc6
{[%clk 0:02:51.6]} 10. Bb5 {[%clk 0:02:37]} 10... Bd7 {[%clk 0:02:43.7]} 11.
Bxc6 {[%clk 0:02:33.1]} 11... Bxc6 {[%clk 0:02:42.9]} 12. d5 {[%clk 0:02:33.3]}
12... Bd7 {[%clk 0:02:42.8]} 13. Qd4 {[%clk 0:02:33.3]} 13... e5 {[%clk
0:02:02.4]} 14. dxe6 {[%clk 0:02:29.5]} 14... Bxe6 {[%clk 0:02:02.3]} 15. Qh8+
{[%clk 0:02:28.4]} 15... Bf8 {[%clk 0:02:02.2]} 16. O-O-O {[%clk 0:02:27.3]}
16... Qe7 {[%clk 0:01:46.9]} 17. Nd5 {[%clk 0:02:25.2]} 17... Bxd5 {[%clk
0:01:45.4]} 18. exd5 {[%clk 0:02:24.6]} 18... O-O-O {[%clk 0:01:44.6]} 19. Qd4
{[%clk 0:02:18.1]} 19... Kb8 {[%clk 0:01:26.5]} 20. Re1 {[%clk 0:02:15.2]} 20...
Qd7 {[%clk 0:01:15.5]} 21. Kb1 {[%clk 0:02:14.6]} 21... Re8 {[%clk 0:01:09.5]}
22. Re3 {[%clk 0:02:12.4]} 22... Bh6 {[%clk 0:00:53.4]} 23. Ra3 {[%clk
0:02:07.3]} 23... a6 {[%clk 0:00:53.5]} 24. Rd3 {[%clk 0:01:59.5]} 24... Qf5
{[%clk 0:00:46.1]} 25. a3 {[%clk 0:01:49.7]} 25... Qe4 {[%clk 0:00:35.2]} 26.
Qf6 {[%clk 0:01:44.2]} 26... Qe7 {[%clk 0:00:34.2]} 27. Qc3 {[%clk 0:01:34.5]}
27... Qe2 {[%clk 0:00:26.8]} 28. Qf6 {[%clk 0:01:31.8]} 28... Qe7 {[%clk
0:00:23.5]} 29. Qc3 {[%clk 0:01:25.5]} 29... f5 {[%clk 0:00:23.2]} 30. Qb4
{[%clk 0:01:18.2]} 30... Qe4 {[%clk 0:00:14.8]} 31. Nd4 {[%clk 0:01:15.6]} 31...
Bg7 {[%clk 0:00:09.1]} 32. Qb3 {[%clk 0:01:06.2]} 32... Bxd4 {[%clk 0:00:06]}
33. Ka2 {[%clk 0:00:59.8]} 33... f4 {[%clk 0:00:05.8]} 34. Qc4 {[%clk
0:00:56.4]} 34... Bxf2 {[%clk 0:00:04.4]} 35. Qb3 {[%clk 0:00:49.8]} 35... g5
{[%clk 0:00:04.5]} 36. Rh3 {[%clk 0:00:48.6]} 36... g4 {[%clk 0:00:04.2]} 37.
Rh6 {[%clk 0:00:47.6]} 37... Qxg2 {[%clk 0:00:03.5]} 38. Re6 {[%clk 0:00:46.5]}
38... Rxe6 {[%clk 0:00:02.9]} 39. dxe6 {[%clk 0:00:46.6]} 39... Qe4 {[%clk
0:00:03]} 40. a4 {[%clk 0:00:29.3]} 40... g3 {[%clk 0:00:03.4]} 41. a5 {[%clk
0:00:23.9]} 41... g2 {[%clk 0:00:03.9]} 42. e7 {[%clk 0:00:24.1]} 42... Qxe7
{[%clk 0:00:03.1]} 43. Qg8+ {[%clk 0:00:23.1]} 43... Ka7 {[%clk 0:00:02.4]} 44.
Qxg2 {[%clk 0:00:22.8]} 44... Bc5 {[%clk 0:00:01.9]} 45. Qf3 {[%clk 0:00:19.1]}
45... Qe6+ {[%clk 0:00:02]} 46. b3 {[%clk 0:00:18.3]} 46... Qe3 {[%clk
0:00:02.2]} 47. Qd5 {[%clk 0:00:16.7]} 47... f3 {[%clk 0:00:02.6]} 48. Qc4
{[%clk 0:00:13.7]} 48... f2 {[%clk 0:00:02.5]} 49. b4 {[%clk 0:00:13.9]} 49...
Bxb4 {[%clk 0:00:02]} 50. Qxb4 {[%clk 0:00:07.2]} 50... f1=Q {[%clk 0:00:02]}
51. Qb2 {[%clk 0:00:04]} 51... Qb5 {[%clk 0:00:01.8]} 52. Qxb5 {[%clk
0:00:03.7]} 52... axb5 {[%clk 0:00:02.4]} 53. a6 {[%clk 0:00:02.7]} 53... Qc5
{[%clk 0:00:03.3]} 0-1

[Event "Early-Titled-Tuesday-Blitz-September-12-2023"]
[Site "Chess.com"]
[Date "2023.09.12"]
[Round "7"]
[White "marik_spb"]
[Black "Boundless_Strike"]
[Result "1-0"]
[WhiteElo "2459"]
[BlackElo "2622"]
[TimeControl "180+1"]
[EndTime "9:18:53 PDT"]
[Termination "marik_spb won on time"]

1. e4 {[%clk 0:03:00.7]} 1... d6 {[%clk 0:02:55.2]} 2. d4 {[%clk 0:03:00.6]}
2... e5 {[%clk 0:02:55.1]} 3. dxe5 {[%clk 0:02:59.2]} 3... Nc6 {[%clk
0:02:55.4]} 4. exd6 {[%clk 0:02:58.7]} 4... Bxd6 {[%clk 0:02:52.6]} 5. Nf3
{[%clk 0:02:54.7]} 5... Bg4 {[%clk 0:02:52.1]} 6. Be2 {[%clk 0:02:54.7]} 6...
Qe7 {[%clk 0:02:52.6]} 7. Nc3 {[%clk 0:02:53.7]} 7... O-O-O {[%clk 0:02:52.5]}
8. Bd3 {[%clk 0:02:28.3]} 8... Nf6 {[%clk 0:02:45.3]} 9. Bg5 {[%clk 0:02:22]}
9... h6 {[%clk 0:02:44.7]} 10. Bh4 {[%clk 0:02:07.7]} 10... g5 {[%clk
0:02:20.9]} 11. Bg3 {[%clk 0:02:04.1]} 11... Bb4 {[%clk 0:02:15.5]} 12. Qe2
{[%clk 0:01:58.5]} 12... Nd4 {[%clk 0:02:05.1]} 13. Qe3 {[%clk 0:01:55.8]} 13...
Bc5 {[%clk 0:01:49.9]} 14. Nxd4 {[%clk 0:01:48.6]} 14... Bxd4 {[%clk 0:01:50.2]}
15. Qd2 {[%clk 0:01:48.7]} 15... Bxc3 {[%clk 0:01:20.3]} 16. Qxc3 {[%clk
0:01:49.6]} 16... Nxe4 {[%clk 0:01:20.9]} 17. Qxc7+ {[%clk 0:01:34.7]} 17...
Qxc7 {[%clk 0:01:18.5]} 18. Bxc7 {[%clk 0:01:35.6]} 18... Kxc7 {[%clk
0:00:58.2]} 19. Bxe4 {[%clk 0:01:35.4]} 19... Rhe8 {[%clk 0:00:57.6]} 20. f3
{[%clk 0:01:28.2]} 20... f5 {[%clk 0:00:57.4]} 21. O-O {[%clk 0:01:22]} 21...
fxe4 {[%clk 0:00:55.7]} 22. fxg4 {[%clk 0:01:22.3]} 22... e3 {[%clk 0:00:49.9]}
23. Rfd1 {[%clk 0:01:12.5]} 23... e2 {[%clk 0:00:30.6]} 24. Rxd8 {[%clk
0:01:07.5]} 24... Rxd8 {[%clk 0:00:26]} 25. Re1 {[%clk 0:01:03.9]} 25... Rd2
{[%clk 0:00:23.2]} 26. Kf2 {[%clk 0:00:38.8]} 26... Rxc2 {[%clk 0:00:23.5]} 27.
Rxe2 {[%clk 0:00:38.6]} 27... Rc6 {[%clk 0:00:24.1]} 28. Ke3 {[%clk 0:00:34.9]}
28... b5 {[%clk 0:00:23.2]} 29. h3 {[%clk 0:00:32.9]} 29... a5 {[%clk
0:00:22.5]} 30. Kd4 {[%clk 0:00:33.2]} 30... Kd6 {[%clk 0:00:22.4]} 31. b3
{[%clk 0:00:32.1]} 31... b4 {[%clk 0:00:22]} 32. Re5 {[%clk 0:00:24.6]} 32...
Ra6 {[%clk 0:00:16.3]} 33. Rf5 {[%clk 0:00:21.8]} 33... Ke6 {[%clk 0:00:15.6]}
34. Kc5 {[%clk 0:00:20.4]} 34... Ra8 {[%clk 0:00:15.7]} 35. Kb5 {[%clk
0:00:19.3]} 35... Rc8 {[%clk 0:00:14.3]} 36. Kb6 {[%clk 0:00:17.2]} 36... a4
{[%clk 0:00:11]} 37. bxa4 {[%clk 0:00:14.8]} 37... Rc2 {[%clk 0:00:11.7]} 38.
Rb5 {[%clk 0:00:10.8]} 38... Rxg2 {[%clk 0:00:08.6]} 39. Rxb4 {[%clk 0:00:10]}
39... Rxa2 {[%clk 0:00:09.2]} 40. a5 {[%clk 0:00:07.9]} 40... Kd7 {[%clk
0:00:07.6]} 41. a6 {[%clk 0:00:05.5]} 41... Kc8 {[%clk 0:00:08.2]} 42. a7 {[%clk
0:00:05.8]} 42... Ra1 {[%clk 0:00:03.1]} 43. Rb5 {[%clk 0:00:05]} 43... Ra2
{[%clk 0:00:02.1]} 44. Rc5+ {[%clk 0:00:05.4]} 44... Kd7 {[%clk 0:00:02.2]} 45.
Ra5 {[%clk 0:00:06.3]} 45... Rb2+ {[%clk 0:00:02.7]} 46. Kc5 {[%clk 0:00:06.7]}
46... Rc2+ {[%clk 0:00:03.1]} 47. Kd5 {[%clk 0:00:06.5]} 47... Rd2+ {[%clk
0:00:02.5]} 48. Ke5 {[%clk 0:00:06.6]} 48... Re2+ {[%clk 0:00:01.5]} 49. Kf5
{[%clk 0:00:07.1]} 49... Re5+ {[%clk 0:00:01.4]} 50. Kxe5 {[%clk 0:00:06.8]} 1-0